[Event "Titled Tuesday Blitz November 15 Late 2022"]
[White "Claverie, Christophe"]
[Black "Eljanov, Pavel"]
[WhiteFideId "605514"]
[BlackFideId "14102951"]
[WhiteElo "2300"]
[BlackElo "2601"]
[Result "0-1"]
[Round "02"]
[TimeControl "180+1"]
[Date "2022.11.16"]
[WhiteClock "0:00:57"]
[BlackClock "0:01:04"]

1. d4 {[%clk 0:03:00]}  d5 {[%clk 0:02:57]} 2. Nf3 {[%clk 0:02:59]}  Nf6 {[%clk 0:02:57]} 3. Bf4 {[%clk 0:02:57]}  c5 {[%clk 0:02:57]} 4. c3 {[%clk 0:02:56]}  Qb6 {[%clk 0:02:54]} 5. Qb3 {[%clk 0:02:55]}  Nc6 {[%clk 0:02:52]} 6. e3 {[%clk 0:02:54]}  c4 {[%clk 0:02:48]} 7. Qc2 {[%clk 0:02:54]}  Bf5 {[%clk 0:02:39]} 8. Qc1 {[%clk 0:02:54]}  e6 {[%clk 0:02:38]} 9. Nh4 {[%clk 0:02:52]}  Qd8 {[%clk 0:02:31]} 10. Nxf5 {[%clk 0:02:51]}  exf5 {[%clk 0:02:31]} 11. b3 {[%clk 0:02:49]}  b5 {[%clk 0:02:28]} 12. a4 {[%clk 0:02:48]}  a6 {[%clk 0:02:28]} 13. Nd2 {[%clk 0:02:43]}  Be7 {[%clk 0:02:22]} 14. Be2 {[%clk 0:02:43]}  O-O {[%clk 0:02:21]} 15. O-O {[%clk 0:02:43]}  Qd7 {[%clk 0:02:14]} 16. Qc2 {[%clk 0:02:41]}  g6 {[%clk 0:02:01]} 17. Rfb1 {[%clk 0:02:39]}  Bd6 {[%clk 0:01:55]} 18. axb5 {[%clk 0:02:28]}  axb5 {[%clk 0:01:54]} 19. bxc4 {[%clk 0:02:26]}  bxc4 {[%clk 0:01:53]} 20. Bxd6 {[%clk 0:02:15]}  Qxd6 {[%clk 0:01:53]} 21. h3 {[%clk 0:02:12]}  h5 {[%clk 0:01:51]} 22. Qb2 {[%clk 0:02:08]}  Rfb8 {[%clk 0:01:45]} 23. Rxa8 {[%clk 0:02:07]}  Rxa8 {[%clk 0:01:46]} 24. Qc1 {[%clk 0:02:02]}  Qa3 {[%clk 0:01:38]} 25. Qc2 {[%clk 0:01:44]}  Ne4 {[%clk 0:01:29]} 26. Nxe4 {[%clk 0:01:44]}  fxe4 {[%clk 0:01:30]} 27. Rb6 {[%clk 0:01:35]}  Ne7 {[%clk 0:01:30]} 28. Rb7 {[%clk 0:01:29]}  Nf5 {[%clk 0:01:25]} 29. Kh2 {[%clk 0:01:23]}  Qd6+ {[%clk 0:01:12]} 30. Kg1 {[%clk 0:01:19]}  Ra1+ {[%clk 0:01:12]} 31. Rb1 {[%clk 0:01:18]}  Qa6 {[%clk 0:01:12]} 32. Kh2 {[%clk 0:01:10]}  Kg7 {[%clk 0:01:05]} 33. Qb2 {[%clk 0:01:01]}  Ra2 {[%clk 0:01:04]} 34. Qb8 {[%clk 0:00:57]}  Rxe2 {[%clk 0:01:04]} 0-1


[Site "https://www.chess.com"]

[Event "Titled Tuesday Blitz November 15 Late 2022"]
[White "Coleman, Maxx"]
[Black "Zhigalko, Sergei"]
[WhiteFideId "2027119"]
[BlackFideId "13502956"]
[WhiteElo "2278"]
[BlackElo "2662"]
[Result "0-1"]
[Round "02"]
[TimeControl "180+1"]
[Date "2022.11.16"]
[WhiteClock "0:00:14"]
[BlackClock "0:00:58"]

1. Nf3 {[%clk 0:02:54]}  d5 {[%clk 0:03:00]} 2. c4 {[%clk 0:02:54]}  d4 {[%clk 0:03:00]} 3. b4 {[%clk 0:02:47]}  Bg4 {[%clk 0:02:55]} 4. e3 {[%clk 0:02:38]}  e5 {[%clk 0:02:51]} 5. h3 {[%clk 0:02:38]}  Bxf3 {[%clk 0:02:41]} 6. Qxf3 {[%clk 0:02:39]}  Nf6 {[%clk 0:02:42]} 7. exd4 {[%clk 0:02:26]}  exd4 {[%clk 0:02:32]} 8. a3 {[%clk 0:02:22]}  Nbd7 {[%clk 0:02:29]} 9. Qxb7 {[%clk 0:02:17]}  a5 {[%clk 0:02:29]} 10. Bb2 {[%clk 0:01:47]}  axb4 {[%clk 0:02:25]} 11. axb4 {[%clk 0:01:48]}  Rb8 {[%clk 0:02:25]} 12. Qf3 {[%clk 0:01:41]}  Bxb4 {[%clk 0:02:22]} 13. Ba3 {[%clk 0:01:32]}  O-O {[%clk 0:02:17]} 14. Be2 {[%clk 0:01:05]}  Ne5 {[%clk 0:02:14]} 15. Qg3 {[%clk 0:01:05]}  d3 {[%clk 0:02:12]} 16. Bxb4 {[%clk 0:00:34]}  Rxb4 {[%clk 0:02:10]} 17. Qxe5 {[%clk 0:00:31]}  Re8 {[%clk 0:02:10]} 18. Qc3 {[%clk 0:00:31]}  Rxe2+ {[%clk 0:02:04]} 19. Kf1 {[%clk 0:00:31]}  c5 {[%clk 0:01:17]} 20. Kg1 {[%clk 0:00:20]}  h6 {[%clk 0:01:10]} 21. g3 {[%clk 0:00:18]}  Ne4 {[%clk 0:01:07]} 22. Qa3 {[%clk 0:00:14]}  Nxf2 {[%clk 0:00:58]} 0-1


[Site "https://www.chess.com"]

[Event "Titled Tuesday Blitz November 15 Late 2022"]
[White "Czernek, Tymon"]
[Black "Avila Rodriguez, Joshua Ad"]
[WhiteFideId "1199510"]
[BlackFideId "5126444"]
[WhiteElo "2185"]
[BlackElo "2125"]
[Result "0-1"]
[Round "02"]
[TimeControl "180+1"]
[Date "2022.11.16"]
[WhiteClock "0:00:53"]
[BlackClock "0:00:49"]

1. e4 {[%clk 0:03:00]}  c5 {[%clk 0:02:59]} 2. Nf3 {[%clk 0:02:58]}  d6 {[%clk 0:03:00]} 3. d4 {[%clk 0:02:58]}  cxd4 {[%clk 0:03:00]} 4. Nxd4 {[%clk 0:02:59]}  Nf6 {[%clk 0:03:00]} 5. Nc3 {[%clk 0:03:00]}  a6 {[%clk 0:03:01]} 6. Bc4 {[%clk 0:03:01]}  e6 {[%clk 0:03:01]} 7. O-O {[%clk 0:03:01]}  b5 {[%clk 0:03:01]} 8. Bb3 {[%clk 0:03:01]}  Be7 {[%clk 0:03:01]} 9. Qf3 {[%clk 0:03:00]}  Qb6 {[%clk 0:03:00]} 10. Be3 {[%clk 0:02:58]}  Qb7 {[%clk 0:03:00]} 11. Qg3 {[%clk 0:02:59]}  b4 {[%clk 0:02:59]} 12. Na4 {[%clk 0:02:59]}  Nbd7 {[%clk 0:02:59]} 13. f3 {[%clk 0:02:59]}  O-O {[%clk 0:02:54]} 14. Rfd1 {[%clk 0:02:52]}  Kh8 {[%clk 0:02:49]} 15. Rac1 {[%clk 0:02:47]}  Ne5 {[%clk 0:02:42]} 16. Nb6 {[%clk 0:02:39]}  Rb8 {[%clk 0:02:18]} 17. Nxc8 {[%clk 0:02:34]}  Rfxc8 {[%clk 0:02:18]} 18. Qf2 {[%clk 0:02:09]}  a5 {[%clk 0:02:15]} 19. g4 {[%clk 0:02:06]}  Qa6 {[%clk 0:02:08]} 20. Ba4 {[%clk 0:01:54]}  Nc4 {[%clk 0:02:05]} 21. Qe2 {[%clk 0:01:47]}  Qa8 {[%clk 0:01:40]} 22. Bf2 {[%clk 0:01:46]}  Nxb2 {[%clk 0:01:36]} 23. e5 {[%clk 0:01:31]}  dxe5 {[%clk 0:01:32]} 24. Qxe5 {[%clk 0:01:27]}  Nxa4 {[%clk 0:01:28]} 25. g5 {[%clk 0:01:15]}  Nd5 {[%clk 0:01:28]} 26. Nf5 {[%clk 0:01:11]}  exf5 {[%clk 0:01:20]} 27. Rxd5 {[%clk 0:01:11]}  Bxg5 {[%clk 0:01:19]} 28. Bd4 {[%clk 0:01:01]}  Bf6 {[%clk 0:01:10]} 29. Qxf5 {[%clk 0:01:01]}  Bxd4+ {[%clk 0:01:06]} 30. Rxd4 {[%clk 0:01:02]}  Nc3 {[%clk 0:00:58]} 31. Re1 {[%clk 0:00:59]}  Re8 {[%clk 0:00:50]} 32. Rxe8+ {[%clk 0:00:56]}  Rxe8 {[%clk 0:00:51]} 33. Qxf7 {[%clk 0:00:56]}  Rf8 {[%clk 0:00:50]} 34. Qe7 {[%clk 0:00:53]}  Qxf3 {[%clk 0:00:49]} 0-1


[Site "https://www.chess.com"]

[Event "Titled Tuesday Blitz November 15 Late 2022"]
[White "Djokic, Mihailo"]
[Black "Bogaudinov, Rushan"]
[WhiteFideId "976440"]
[BlackFideId "4129288"]
[WhiteElo "2315"]
[BlackElo "1997"]
[Result "1/2-1/2"]
[Round "02"]
[TimeControl "180+1"]
[Date "2022.11.16"]
[WhiteClock "0:00:04"]
[BlackClock "0:00:08"]

1. e4 {[%clk 0:03:00]}  c5 {[%clk 0:02:39]} 2. Nf3 {[%clk 0:03:00]}  d6 {[%clk 0:02:39]} 3. d4 {[%clk 0:03:01]}  cxd4 {[%clk 0:02:40]} 4. Nxd4 {[%clk 0:03:01]}  Nf6 {[%clk 0:02:40]} 5. Nc3 {[%clk 0:03:02]}  a6 {[%clk 0:02:40]} 6. Rg1 {[%clk 0:03:03]}  b5 {[%clk 0:02:38]} 7. g4 {[%clk 0:03:03]}  Bb7 {[%clk 0:02:37]} 8. g5 {[%clk 0:03:03]}  Nxe4 {[%clk 0:02:32]} 9. Nxe4 {[%clk 0:03:03]}  Bxe4 {[%clk 0:02:32]} 10. Qg4 {[%clk 0:03:04]}  Bb7 {[%clk 0:02:20]} 11. Bg2 {[%clk 0:03:05]}  Bxg2 {[%clk 0:02:12]} 12. Qxg2 {[%clk 0:03:05]}  d5 {[%clk 0:02:00]} 13. Bf4 {[%clk 0:03:01]}  e6 {[%clk 0:01:57]} 14. O-O-O {[%clk 0:03:01]}  Bd6 {[%clk 0:01:46]} 15. Bxd6 {[%clk 0:02:46]}  Qxd6 {[%clk 0:01:46]} 16. Rge1 {[%clk 0:02:44]}  O-O {[%clk 0:01:32]} 17. Kb1 {[%clk 0:02:42]}  Nc6 {[%clk 0:01:25]} 18. Ne2 {[%clk 0:02:33]}  Rac8 {[%clk 0:01:20]} 19. h4 {[%clk 0:02:30]}  Nb4 {[%clk 0:01:06]} 20. Nd4 {[%clk 0:02:25]}  Qc5 {[%clk 0:01:02]} 21. c3 {[%clk 0:02:24]}  Nc6 {[%clk 0:01:02]} 22. Nb3 {[%clk 0:02:22]}  Qb6 {[%clk 0:00:59]} 23. h5 {[%clk 0:02:22]}  a5 {[%clk 0:01:00]} 24. g6 {[%clk 0:02:22]}  a4 {[%clk 0:00:54]} 25. gxh7+ {[%clk 0:02:09]}  Kxh7 {[%clk 0:00:53]} 26. Rg1 {[%clk 0:02:09]}  Rg8 {[%clk 0:00:52]} 27. Rd3 {[%clk 0:02:07]}  Ne7 {[%clk 0:00:35]} 28. Qg6+ {[%clk 0:02:01]}  Kh8 {[%clk 0:00:28]} 29. Qxf7 {[%clk 0:01:44]}  axb3 {[%clk 0:00:26]} 30. Qxe7 {[%clk 0:01:33]}  Qxf2 {[%clk 0:00:25]} 31. Rc1 {[%clk 0:01:26]}  Qf5 {[%clk 0:00:23]} 32. Rd1 {[%clk 0:01:23]}  b4 {[%clk 0:00:22]} 33. Qxb4 {[%clk 0:01:20]}  bxa2+ {[%clk 0:00:21]} 34. Ka1 {[%clk 0:01:12]}  Rc4 {[%clk 0:00:21]} 35. Qe7 {[%clk 0:01:07]}  Rf4 {[%clk 0:00:20]} 36. h6 {[%clk 0:00:54]}  gxh6 {[%clk 0:00:19]} 37. Kxa2 {[%clk 0:00:24]}  Ra8+ {[%clk 0:00:18]} 38. Kb3 {[%clk 0:00:25]}  Rb8+ {[%clk 0:00:16]} 39. Ka2 {[%clk 0:00:20]}  Rf2 {[%clk 0:00:14]} 40. R3d2 {[%clk 0:00:15]}  Ra8+ {[%clk 0:00:14]} 41. Kb3 {[%clk 0:00:13]}  Qe4 {[%clk 0:00:12]} 42. Qb4 {[%clk 0:00:08]}  Qxb4+ {[%clk 0:00:11]} 43. Kxb4 {[%clk 0:00:04]}  Rb8+ {[%clk 0:00:11]} 44. Kc5 {[%clk 0:00:04]}  Rf6 {[%clk 0:00:10]} 45. b4 {[%clk 0:00:02]}  Rc8+ {[%clk 0:00:10]} 46. Kd4 {[%clk 0:00:03]}  Rf4+ {[%clk 0:00:09]} 47. Ke5 {[%clk 0:00:02]}  Re4+ {[%clk 0:00:09]} 48. Kf6 {[%clk 0:00:01]}  Rxc3 {[%clk 0:00:09]} 49. Rh2 {[%clk 0:00:02]}  Kh7 {[%clk 0:00:09]} 50. Rdh1 {[%clk 0:00:02]}  Rf3+ {[%clk 0:00:07]} 51. Ke7 {[%clk 0:00:02]}  Kg6 {[%clk 0:00:06]} 52. Rxh6+ {[%clk 0:00:03]}  Kf5 {[%clk 0:00:06]} 53. R1h5+ {[%clk 0:00:03]}  Kf4 {[%clk 0:00:07]} 54. Rf6+ {[%clk 0:00:04]}  Ke3 {[%clk 0:00:07]} 55. Rxe6 {[%clk 0:00:03]}  Rxe6+ {[%clk 0:00:07]} 56. Kxe6 {[%clk 0:00:03]}  d4 {[%clk 0:00:07]} 57. b5 {[%clk 0:00:03]}  d3 {[%clk 0:00:07]} 58. b6 {[%clk 0:00:04]}  d2 {[%clk 0:00:07]} 59. Rd5 {[%clk 0:00:04]}  Rf8 {[%clk 0:00:06]} 60. Re5+ {[%clk 0:00:03]}  Kd3 {[%clk 0:00:06]} 61. Rd5+ {[%clk 0:00:04]}  Kc2 {[%clk 0:00:06]} 62. Kd7 {[%clk 0:00:02]}  Rb8 {[%clk 0:00:06]} 63. Kc7 {[%clk 0:00:02]}  Rxb6 {[%clk 0:00:06]} 64. Kxb6 {[%clk 0:00:03]}  d1=Q {[%clk 0:00:07]} 65. Rxd1 {[%clk 0:00:04]}  Kxd1 {[%clk 0:00:08]} 1/2-1/2


[Site "https://www.chess.com"]

[Event "Titled Tuesday Blitz November 15 Late 2022"]
[White "Do Nascimento,Christian Almeida"]
[Black "Hoffmann, Asa"]
[WhiteFideId "2143801"]
[BlackFideId "2001470"]
[WhiteElo "2079"]
[BlackElo "2117"]
[Result "0-1"]
[Round "02"]
[TimeControl "180+1"]
[Date "2022.11.16"]
[WhiteClock "0:00:06"]
[BlackClock "0:00:19"]

1. e4 {[%clk 0:02:59]}  d6 {[%clk 0:02:59]} 2. d4 {[%clk 0:02:56]}  Nf6 {[%clk 0:02:59]} 3. Nc3 {[%clk 0:02:56]}  c6 {[%clk 0:02:58]} 4. Nf3 {[%clk 0:02:53]}  Bg4 {[%clk 0:02:57]} 5. a4 {[%clk 0:02:52]}  e6 {[%clk 0:02:56]} 6. h3 {[%clk 0:02:49]}  Bh5 {[%clk 0:02:56]} 7. Bd3 {[%clk 0:02:48]}  d5 {[%clk 0:02:48]} 8. e5 {[%clk 0:02:48]}  Nfd7 {[%clk 0:02:48]} 9. O-O {[%clk 0:02:43]}  c5 {[%clk 0:02:46]} 10. dxc5 {[%clk 0:02:33]}  Nc6 {[%clk 0:02:42]} 11. Bf4 {[%clk 0:02:27]}  Bxc5 {[%clk 0:02:40]} 12. Qe2 {[%clk 0:02:11]}  Nd4 {[%clk 0:02:37]} 13. Qd1 {[%clk 0:02:03]}  Nxf3+ {[%clk 0:02:37]} 14. gxf3 {[%clk 0:02:03]}  Qh4 {[%clk 0:02:28]} 15. Be3 {[%clk 0:01:38]}  d4 {[%clk 0:02:14]} 16. Ne4 {[%clk 0:01:28]}  dxe3 {[%clk 0:02:12]} 17. Bb5 {[%clk 0:01:26]}  exf2+ {[%clk 0:02:06]} 18. Kg2 {[%clk 0:01:26]}  O-O {[%clk 0:01:29]} 19. Bxd7 {[%clk 0:01:25]}  Qxe4 {[%clk 0:01:18]} 20. fxe4 {[%clk 0:01:23]}  Bxd1 {[%clk 0:01:17]} 21. Raxd1 {[%clk 0:01:21]}  Rfd8 {[%clk 0:01:16]} 22. Bb5 {[%clk 0:01:15]}  a6 {[%clk 0:01:15]} 23. Be2 {[%clk 0:01:12]}  Kf8 {[%clk 0:01:03]} 24. c3 {[%clk 0:01:11]}  a5 {[%clk 0:00:59]} 25. Bb5 {[%clk 0:01:09]}  Ke7 {[%clk 0:00:59]} 26. Kf3 {[%clk 0:01:01]}  Rxd1 {[%clk 0:00:53]} 27. Rxd1 {[%clk 0:01:02]}  Rd8 {[%clk 0:00:51]} 28. Rxd8 {[%clk 0:00:54]}  Kxd8 {[%clk 0:00:50]} 29. Ke2 {[%clk 0:00:55]}  Ke7 {[%clk 0:00:46]} 30. h4 {[%clk 0:00:54]}  f6 {[%clk 0:00:46]} 31. exf6+ {[%clk 0:00:47]}  Kxf6 {[%clk 0:00:46]} 32. Kf3 {[%clk 0:00:45]}  Ke5 {[%clk 0:00:45]} 33. Bf1 {[%clk 0:00:43]}  g6 {[%clk 0:00:44]} 34. Bg2 {[%clk 0:00:41]}  h6 {[%clk 0:00:43]} 35. Kg4 {[%clk 0:00:38]}  Be3 {[%clk 0:00:40]} 36. Kf3 {[%clk 0:00:37]}  Bc1 {[%clk 0:00:39]} 37. b4 {[%clk 0:00:36]}  Bd2 {[%clk 0:00:36]} 38. b5 {[%clk 0:00:30]}  Bxc3 {[%clk 0:00:31]} 39. Kxf2 {[%clk 0:00:30]}  Kf4 {[%clk 0:00:31]} 40. Ke2 {[%clk 0:00:22]}  b6 {[%clk 0:00:30]} 41. Bf3 {[%clk 0:00:19]}  Kg3 {[%clk 0:00:27]} 42. h5 {[%clk 0:00:19]}  g5 {[%clk 0:00:26]} 43. Ke3 {[%clk 0:00:07]}  g4 {[%clk 0:00:24]} 44. Be2 {[%clk 0:00:07]}  Be5 {[%clk 0:00:21]} 45. Bd1 {[%clk 0:00:05]}  Kh4 {[%clk 0:00:21]} 46. Be2 {[%clk 0:00:05]}  Kxh5 {[%clk 0:00:21]} 47. Bd1 {[%clk 0:00:05]}  Kg5 {[%clk 0:00:21]} 48. Kf2 {[%clk 0:00:05]}  h5 {[%clk 0:00:21]} 49. Ke3 {[%clk 0:00:05]}  h4 {[%clk 0:00:21]} 50. Be2 {[%clk 0:00:06]}  h3 {[%clk 0:00:21]} 51. Kf2 {[%clk 0:00:06]}  g3+ {[%clk 0:00:20]} 52. Kf3 {[%clk 0:00:06]}  g2 {[%clk 0:00:19]} 0-1


[Site "https://www.chess.com"]

[Event "Titled Tuesday Blitz November 15 Late 2022"]
[White "Dzierzak, Radoslaw"]
[Black "Bernat, David"]
[WhiteFideId "1161407"]
[BlackFideId "2099225"]
[WhiteElo "2111"]
[BlackElo "2347"]
[Result "1-0"]
[Round "02"]
[TimeControl "180+1"]
[Date "2022.11.16"]
[WhiteClock "0:02:16"]
[BlackClock "0:02:18"]

1. e4 {[%clk 0:03:00]}  c5 {[%clk 0:02:59]} 2. Nf3 {[%clk 0:03:01]}  g6 {[%clk 0:03:00]} 3. Bc4 {[%clk 0:03:00]}  Bg7 {[%clk 0:02:59]} 4. O-O {[%clk 0:03:00]}  e6 {[%clk 0:02:58]} 5. c3 {[%clk 0:03:00]}  Ne7 {[%clk 0:02:56]} 6. d4 {[%clk 0:03:00]}  cxd4 {[%clk 0:02:57]} 7. Nxd4 {[%clk 0:03:00]}  O-O {[%clk 0:02:52]} 8. Bf4 {[%clk 0:02:42]}  e5 {[%clk 0:02:41]} 9. Bg3 {[%clk 0:02:29]}  exd4 {[%clk 0:02:39]} 10. cxd4 {[%clk 0:02:30]}  d5 {[%clk 0:02:38]} 11. exd5 {[%clk 0:02:29]}  Nxd5 {[%clk 0:02:39]} 12. Nc3 {[%clk 0:02:29]}  Nxc3 {[%clk 0:02:37]} 13. bxc3 {[%clk 0:02:30]}  Qc7 {[%clk 0:02:37]} 14. Bxc7 {[%clk 0:02:30]}  Nc6 {[%clk 0:02:28]} 15. Qf3 {[%clk 0:02:19]}  h5 {[%clk 0:02:19]} 16. h3 {[%clk 0:02:18]}  Bd7 {[%clk 0:02:18]} 17. Bd6 {[%clk 0:02:16]} 1-0


[Site "https://www.chess.com"]

[Event "Titled Tuesday Blitz November 15 Late 2022"]
[White "Espinosa, Pedro"]
[Black "Kaganskiy, Gleb"]
[WhiteFideId "30921066"]
[BlackFideId "4132025"]
[WhiteElo "2016"]
[BlackElo "2165"]
[Result "1-0"]
[Round "02"]
[TimeControl "180+1"]
[Date "2022.11.16"]
[WhiteClock "0:00:45"]
[BlackClock "0:00:06"]

1. d4 {[%clk 0:03:00]}  Nf6 {[%clk 0:02:57]} 2. c4 {[%clk 0:03:00]}  e6 {[%clk 0:02:57]} 3. Nf3 {[%clk 0:03:01]}  d5 {[%clk 0:02:57]} 4. Nc3 {[%clk 0:03:01]}  c5 {[%clk 0:02:57]} 5. cxd5 {[%clk 0:03:01]}  cxd4 {[%clk 0:02:58]} 6. Qxd4 {[%clk 0:03:01]}  exd5 {[%clk 0:02:47]} 7. Bg5 {[%clk 0:03:00]}  Be7 {[%clk 0:02:47]} 8. e3 {[%clk 0:03:00]}  O-O {[%clk 0:02:47]} 9. Qa4 {[%clk 0:03:00]}  Nc6 {[%clk 0:02:44]} 10. Bb5 {[%clk 0:02:56]}  Bg4 {[%clk 0:01:55]} 11. Bxf6 {[%clk 0:02:41]}  Bxf6 {[%clk 0:01:47]} 12. Qxg4 {[%clk 0:02:41]}  Qa5 {[%clk 0:01:47]} 13. Qa4 {[%clk 0:02:21]}  Bxc3+ {[%clk 0:01:44]} 14. bxc3 {[%clk 0:02:22]}  Qxc3+ {[%clk 0:01:45]} 15. Ke2 {[%clk 0:02:22]}  Qb2+ {[%clk 0:01:26]} 16. Nd2 {[%clk 0:02:19]}  Rac8 {[%clk 0:01:05]} 17. Rab1 {[%clk 0:02:10]}  Qf6 {[%clk 0:01:05]} 18. Bxc6 {[%clk 0:02:06]}  bxc6 {[%clk 0:00:56]} 19. Qd4 {[%clk 0:01:59]}  Qg6 {[%clk 0:00:54]} 20. h4 {[%clk 0:01:32]}  c5 {[%clk 0:00:53]} 21. Qd3 {[%clk 0:01:28]}  Qg4+ {[%clk 0:00:41]} 22. Nf3 {[%clk 0:01:21]}  d4 {[%clk 0:00:32]} 23. Rh3 {[%clk 0:01:02]}  dxe3 {[%clk 0:00:29]} 24. Rg3 {[%clk 0:01:00]}  Qa4 {[%clk 0:00:24]} 25. fxe3 {[%clk 0:00:50]}  Rfd8 {[%clk 0:00:19]} 26. Qc3 {[%clk 0:00:45]}  Qxa2+ {[%clk 0:00:18]} 27. Rb2 {[%clk 0:00:46]}  Qe6 {[%clk 0:00:06]} 28. Qxg7# {[%clk 0:00:45]} 1-0


[Site "https://www.chess.com"]

[Event "Titled Tuesday Blitz November 15 Late 2022"]
[White "Fernandez Guillen, Ernesto J."]
[Black "Onslow, Alfie"]
[WhiteFideId "3512428"]
[BlackFideId "436976"]
[WhiteElo "2450"]
[BlackElo "2015"]
[Result "1-0"]
[Round "02"]
[TimeControl "180+1"]
[Date "2022.11.16"]
[WhiteClock "0:01:13"]
[BlackClock "0:00:38"]

1. e4 {[%clk 0:03:00]}  g6 {[%clk 0:02:59]} 2. d4 {[%clk 0:02:58]}  Bg7 {[%clk 0:03:00]} 3. Nc3 {[%clk 0:02:59]}  c6 {[%clk 0:03:00]} 4. h4 {[%clk 0:02:44]}  h5 {[%clk 0:03:00]} 5. Bg5 {[%clk 0:02:42]}  d5 {[%clk 0:02:59]} 6. e5 {[%clk 0:02:41]}  Nh6 {[%clk 0:02:57]} 7. Bd3 {[%clk 0:02:40]}  Bf5 {[%clk 0:02:57]} 8. Nce2 {[%clk 0:02:39]}  Bxd3 {[%clk 0:02:42]} 9. Qxd3 {[%clk 0:02:40]}  Qa5+ {[%clk 0:02:41]} 10. c3 {[%clk 0:02:40]}  Qa6 {[%clk 0:02:42]} 11. Qc2 {[%clk 0:02:40]}  e6 {[%clk 0:02:41]} 12. Nf3 {[%clk 0:02:37]}  Nf5 {[%clk 0:02:40]} 13. O-O {[%clk 0:02:35]}  Nd7 {[%clk 0:02:38]} 14. Nf4 {[%clk 0:02:35]}  b6 {[%clk 0:02:34]} 15. a4 {[%clk 0:02:27]}  Bh6 {[%clk 0:02:26]} 16. Bxh6 {[%clk 0:02:17]}  Rxh6 {[%clk 0:02:17]} 17. a5 {[%clk 0:02:06]}  Qb7 {[%clk 0:02:04]} 18. b4 {[%clk 0:02:03]}  Kf8 {[%clk 0:01:53]} 19. g3 {[%clk 0:01:59]}  Kg7 {[%clk 0:01:51]} 20. Rfb1 {[%clk 0:01:53]}  Rhh8 {[%clk 0:01:48]} 21. Ng5 {[%clk 0:01:52]}  Rhe8 {[%clk 0:01:25]} 22. Qe2 {[%clk 0:01:50]}  Qc7 {[%clk 0:01:20]} 23. g4 {[%clk 0:01:31]}  Nxh4 {[%clk 0:01:06]} 24. gxh5 {[%clk 0:01:29]}  Qd8 {[%clk 0:01:06]} 25. h6+ {[%clk 0:01:22]}  Kg8 {[%clk 0:00:55]} 26. h7+ {[%clk 0:01:22]}  Kg7 {[%clk 0:00:53]} 27. h8=Q+ {[%clk 0:01:12]}  Rxh8 {[%clk 0:00:38]} 28. Nfxe6+ {[%clk 0:01:12]}  fxe6 {[%clk 0:00:38]} 29. Nxe6+ {[%clk 0:01:12]}  Kf7 {[%clk 0:00:37]} 30. Nxd8+ {[%clk 0:01:13]}  Raxd8 {[%clk 0:00:38]} 31. e6+ {[%clk 0:01:13]} 1-0


[Site "https://www.chess.com"]

[Event "Titled Tuesday Blitz November 15 Late 2022"]
[White "Foerster-Yialamas, Lucas"]
[Black "Graif, William"]
[WhiteFideId "30901774"]
[BlackFideId "2609835"]
[WhiteElo "2067"]
[BlackElo "2205"]
[Result "1-0"]
[Round "02"]
[TimeControl "180+1"]
[Date "2022.11.16"]
[WhiteClock "0:00:16"]
[BlackClock "0:00:02"]

1. e4 {[%clk 0:03:00]}  e5 {[%clk 0:02:53]} 2. Nf3 {[%clk 0:02:55]}  Bc5 {[%clk 0:02:48]} 3. Nxe5 {[%clk 0:02:46]}  Nc6 {[%clk 0:02:47]} 4. Nxc6 {[%clk 0:02:45]}  dxc6 {[%clk 0:02:48]} 5. c3 {[%clk 0:02:42]}  Qh4 {[%clk 0:02:46]} 6. d4 {[%clk 0:02:28]}  Qxe4+ {[%clk 0:02:44]} 7. Qe2 {[%clk 0:02:28]}  Qxe2+ {[%clk 0:02:40]} 8. Bxe2 {[%clk 0:02:29]}  Bd6 {[%clk 0:02:26]} 9. O-O {[%clk 0:02:25]}  Bf5 {[%clk 0:02:04]} 10. Re1 {[%clk 0:02:23]}  O-O-O {[%clk 0:02:03]} 11. Nd2 {[%clk 0:01:56]}  Nf6 {[%clk 0:02:02]} 12. Nc4 {[%clk 0:01:49]}  Rhe8 {[%clk 0:01:41]} 13. Bg5 {[%clk 0:01:43]}  Be7 {[%clk 0:01:05]} 14. Ne5 {[%clk 0:01:36]}  Ne4 {[%clk 0:00:49]} 15. Bxe7 {[%clk 0:01:31]}  Rxe7 {[%clk 0:00:47]} 16. g4 {[%clk 0:01:20]}  Be6 {[%clk 0:00:27]} 17. f4 {[%clk 0:00:58]}  f6 {[%clk 0:00:20]} 18. Nxc6 {[%clk 0:00:50]}  bxc6 {[%clk 0:00:18]} 19. Ba6+ {[%clk 0:00:49]}  Kd7 {[%clk 0:00:18]} 20. Rxe4 {[%clk 0:00:50]}  Bxg4 {[%clk 0:00:18]} 21. Rxe7+ {[%clk 0:00:43]}  Kxe7 {[%clk 0:00:19]} 22. Re1+ {[%clk 0:00:43]}  Kd6 {[%clk 0:00:17]} 23. Kf2 {[%clk 0:00:44]}  Rd7 {[%clk 0:00:16]} 24. Bc8 {[%clk 0:00:36]}  h5 {[%clk 0:00:13]} 25. Bxd7 {[%clk 0:00:36]}  Bxd7 {[%clk 0:00:14]} 26. Re3 {[%clk 0:00:36]}  g5 {[%clk 0:00:13]} 27. Kg3 {[%clk 0:00:35]}  h4+ {[%clk 0:00:13]} 28. Kf3 {[%clk 0:00:31]}  g4+ {[%clk 0:00:13]} 29. Kf2 {[%clk 0:00:32]}  f5 {[%clk 0:00:12]} 30. Re5 {[%clk 0:00:31]}  Be6 {[%clk 0:00:11]} 31. b4 {[%clk 0:00:31]}  Kd7 {[%clk 0:00:09]} 32. a4 {[%clk 0:00:30]}  Kd6 {[%clk 0:00:10]} 33. Ra5 {[%clk 0:00:28]}  Bb3 {[%clk 0:00:08]} 34. Rxa7 {[%clk 0:00:27]}  Kd5 {[%clk 0:00:08]} 35. Rxc7 {[%clk 0:00:26]}  Bxa4 {[%clk 0:00:09]} 36. Rh7 {[%clk 0:00:25]}  Ke4 {[%clk 0:00:07]} 37. Rxh4 {[%clk 0:00:22]}  Kxf4 {[%clk 0:00:07]} 38. h3 {[%clk 0:00:17]}  Kg5 {[%clk 0:00:03]} 39. Rh8 {[%clk 0:00:16]}  Kf4 {[%clk 0:00:02]} 40. hxg4 {[%clk 0:00:16]}  Kxg4 {[%clk 0:00:03]} 41. Rd8 {[%clk 0:00:14]}  Kf4 {[%clk 0:00:03]} 42. d5 {[%clk 0:00:15]}  cxd5 {[%clk 0:00:02]} 43. Rxd5 {[%clk 0:00:16]}  Ke4 {[%clk 0:00:03]} 44. Rd8 {[%clk 0:00:16]}  f4 {[%clk 0:00:02]} 45. c4 {[%clk 0:00:16]} 1-0


[Site "https://www.chess.com"]